Cogmind - Beta 15 @@@ ROGUE MODE // 2025.10.21 @ 05:09:19 // Winter2022/Polymind Player: NQH Result: Destroyed by FU-T0P(R) with Subdweller Beam Cannon Performance ------------- Evolutions (0) 0 Regions Visited (3) 600 Robots Destroyed (1) 5 Value Destroyed (40) 40 Prototype IDs (0) 0 Alien Tech Used (0) 0 Bonus (820) 820 TOTAL SCORE: 1235 Bonus ------- Polymind Skill 820 Cogmind --------- Core Integrity 0/250 Matter 0/0 Energy 100/100 System Corruption 0% Temperature Cool (9) Movement Core (50) Location -10/Subcaves Parts ------- > --- POWER (1) -------- (None) > --- PROPULSION (2) --- (None) > --- UTILITY (2) ------ (None) > --- WEAPON (1) ------- (None) > --- INVENTORY (0) ---- (None) Peak State ------------ > --- POWER ------------ Subdweller Power Source > --- PROPULSION ------- Subdweller Monowheel > --- UTILITY ---------- Disposable Heat Sink Subdweller Optics Scrap Shield > --- WEAPON ----------- Subdweller Machine Gun > --- INVENTORY -------- Scrap Shield Fragment [Rating: 14] Favorites ----------- Power Subdweller Power Source Engine Subdweller Power Source Propulsion Subdweller Monowheel Wheel Subdweller Monowheel Utility Disposable Heat Sink Device Disposable Heat Sink Storage Small Storage Unit Protection Scrap Shield Weapon Subdweller Machine Gun Ballistic Gun Subdweller Machine Gun Special Weapon Mining Laser Build | -11 -10 -10 -10 ------- Run | Yrd Mat Min Sub Slots Evolved . | . . . . Power . | . . . . Propulsion . | . . . . Utility . | . . . . Weapon . | . . . . Parts Attached . | . . . . Power . | . . . . Engine . | . . . . Core . | . . . . Reactor . | . . . . Propulsion . | . . . . Treads . | . . . . Leg . | . . . . Wheel . | . . . . Hover . | . . . . Flight . | . . . . Utility . | . . . . Device . | . . . . Storage . | . . . . Processor . | . . . . Hackware . | . . . . Protection . | . . . . Artifact . | . . . . Weapon . | . . . . Energy Gun . | . . . . Energy Cannon . | . . . . Ballistic Gun . | . . . . Ballistic Cannon . | . . . . Launcher . | . . . . Special Weapon . | . . . . Impact Weapon . | . . . . Slashing Weapon . | . . . . Piercing Weapon . | . . . . Special Melee Weapon . | . . . . Unidentified Prototypes . | . . . . Parts Lost 2 | . . . 2 Power . | . . . . Propulsion 1 | . . . 1 Utility 1 | . . . 1 Weapon . | . . . . Highest Loss Streak 2 | . . . 2 To Critical Strikes . | . . . . Average Backups . | 1 . . . Power . | 1 . . . Propulsion . | . . . . Utility . | . . . . Weapon . | . . . . Tool/Special . | . . . . Unused Backups 4 | 2 1 . 1 Power 1 | 1 . . . Propulsion 1 | 1 . . . Utility 1 | . 1 . . Weapon 1 | . . . 1 Tool/Special . | . . . . Average Slot Usage (%) 80 | . 100 87 76 Engine 14 | . 20 14 13 Wheel 19 | . 40 29 14 Device 23 | . 20 27 24 Storage 2 | . 20 2 . Protection 7 | . . . 9 Ballistic Gun 7 | . . . 9 Special Weapon 4 | . . 12 3 Peak Build Rating 14 | 5 5 8 14 Average Rating 9 | 4 5 6 11 On Entrance 4 | . 5 5 8 Naked Turns 54 | . . 12 42 Heaviest Build 30 | 9 9 9 30 Greatest Support 32 | 32 32 32 20 Greatest Overweight (x) 1 | . . . 1 Average Overweight (x) . | . . . . Largest Inventory Capacity 4 | 4 4 4 2 Average Capacity 1 | 3 4 . 1 Most Carried 4 | 4 1 . 2 Average Carried . | 2 . . 1 Final Capacity 4 | 4 4 . . Final Carried . | . . . . Class Distribution -------------------- 55% | Subdweller 24% | Tunneler 12% | Recycler 7% | Cogmind Dominant Class ---------------- Recycler | -10/Materials Tunneler | -10/Mines Subdweller | -10/Subcaves Resources | -11 -10 -10 -10 ----------- Run | Yrd Mat Min Sub Matter Collected 18 | . . . 18 Remotely . | . . . . Salvage Created 71 | . . . 71 Parts 3 | . . . 3 Haulers Intercepted . | . . . . Recyclers Shooed . | . . . . Parts Field Recycled . | . . . . Retrieved Matter . | . . . . Parts Self-Destructed 11 | . . . 11 Prevented . | . . . . Kills | -11 -10 -10 -10 ------- Run | Yrd Mat Min Sub Combat Hostiles Destroyed 1 | . . . 1 Guns 1 | . . . 1 Classes Destroyed 1 | . . . 1 Subdweller 1 | . . . 1 Best Kill Streak 1 | . . . 1 Combat Bots Only 1 | . . . 1 Max Kills in Single Turn 1 | . . . 1 Gunslinging . | . . . . Exploded . | . . . . Melee . | . . . . Uniques/NPCs Destroyed . | . . . . Combat | -11 -10 -10 -10 -------- Run | Yrd Mat Min Sub Hostile Shots Fired 31 | . . . 31 Missed 15 | . . . 15 Hits 16 | . . . 16 Projectile 16 | . . . 16 Damage Taken 453 | . . . 453 Core 250 | . . . 250 Absorbed by Shields . | . . . . Core Remaining (%) 100 | 100 . . . Volleys Fired 15 | . . 3 12 Largest 1 | . . 1 1 Hottest 100 | . . 100 100 Shots Fired 15 | . . 3 12 Gun 9 | . . . 9 Cannon . | . . . . Launcher . | . . . . Special 6 | . . 3 3 Kinetic 9 | . . . 9 Thermal 6 | . . 3 3 Explosive . | . . . . Electromagnetic . | . . . . Robot Hit Streak 1 | . . . 1 Robot Miss Streak 2 | . . . 2 Penetration Max . | . . . . Secondary Targets . | . . . . Shots Hit Robots 4 | . . . 4 Core Hits 2 | . . . 2 Critical Kills . | . . . . Critical Parts Destroyed . | . . . . Critical Strikes . | . . . . Melee Attacks . | . . . . Impact . | . . . . Slashing . | . . . . Piercing . | . . . . Sneak Attacks . | . . . . Combat Hostiles . | . . . . Follow-up Attacks . | . . . . Damage Inflicted 63 | . . . 63 Guns 45 | . . . 45 Cannons . | . . . . Explosions . | . . . . Melee . | . . . . Ramming 18 | . . . 18 Kinetic 45 | . . . 45 Thermal . | . . . . Explosive . | . . . . Electromagnetic . | . . . . Impact . | . . . . Slashing . | . . . . Piercing . | . . . . Highest Corruption . | . . . . Average Corruption . | . . . . Corruption Purged . | . . . . Corruption Blocked . | . . . . Overload Shots . | . . . . Overflow Damage . | . . . . Projectiles . | . . . . Explosions . | . . . . Melee . | . . . . Knockbacks 1 | . . . 1 Impact 1 | . . . 1 Kinetic . | . . . . Secondary . | . . . . Self-Inflicted Damage 8 | . . . 8 Shots . | . . . . Rammed 3 | . . . 3 Targets Rammed 3 | . . . 3 Kicked . | . . . . Crushed . | . . . . Highest Temperature 170 | . . 170 . Average Temperature 110 | . . 110 . Received Heat Transfer 99 | . . . 99 Siege Activations . | . . . . Martial Activations . | . . . . Shielding Activations . | . . . . Robots Disrupted . | . . . . Combat Hostiles . | . . . . Robots Corrupted . | . . . . Combat Hostiles . | . . . . Parts Fried . | . . . . Impact Corruptions . | . . . . Robots Melted . | . . . . Combat Hostiles . | . . . . Parts Melted . | . . . . Heat Transferred . | . . . . Parts Sabotaged . | . . . . Parts Stolen . | . . . . Parts Stripped . | . . . . Power Chain Reactions . | . . . . Alert | -11 -10 -10 -10 ------- Run | Yrd Mat Min Sub Maximum Alert Level . | . . . . Low Security (%) 100 | 100 100 100 . Level 1 . | . . . . Level 2 . | . . . . Level 3 . | . . . . Level 4 . | . . . . Level 5 . | . . . . High Security . | . . . . Max Security . | . . . . Peak Influence 1 | . . 1 . Initial . | . . . . Average . | . . . . Influence Increases 1 | . . 1 . Destroy Structure 1 | . . 1 . Influence Decreases 1 | . . 1 . Time Decay 1 | . . 1 . Squads Dispatched . | . . . . Investigation . | . . . . Extermination . | . . . . Reinforcement . | . . . . Assault . | . . . . Garrison . | . . . . Intercept . | . . . . Searches Triggered . | . . . . Construction Impeded . | . . . . Haulers Reinforced . | . . . . Active Scanning Responses . | . . . . Cargo Convoy Interrupts . | . . . . Stealth | -11 -10 -10 -10 --------- Run | Yrd Mat Min Sub Distress Signals . | . . . . Communications Jammed . | . . . . Distress Signals . | . . . . Times Spotted 6 | . . . 6 Peak Tracking Total 3 | . . . 3 Tactical Retreats . | . . . . Traps | -11 -10 -10 -10 ------- Run | Yrd Mat Min Sub Traps Triggered 2 | . . . 2 Indirectly . | . . . . Trap Hack Attempts . | . . . . Triggered . | . . . . Disarmed . | . . . . Reprogrammed . | . . . . Reused . | . . . . Traps Extracted . | . . . . Installed . | . . . . Triggered . | . . . . Machines | -11 -10 -10 -10 ---------- Run | Yrd Mat Min Sub Machines Disabled . | . . . . Max in Single Turn . | . . . . Machines Repaired . | . . . . Machines Dismantled . | . . . . Machines Sabotaged . | . . . . Overloaded Fab Kills . | . . . . Hacking | -11 -10 -10 -10 --------- Run | Yrd Mat Min Sub Machines Accessed . | . . . . Terminals . | . . . . Fabricators . | . . . . Repair Stations . | . . . . Recycling Units . | . . . . Scanalyzers . | . . . . Garrison Access . | . . . . Total Hacks . | . . . . Successful . | . . . . Failed . | . . . . Catastrophic . | . . . . Database Lockouts . | . . . . Manual . | . . . . Terminals . | . . . . Fabricators . | . . . . Repair Stations . | . . . . Recycling Units . | . . . . Scanalyzers . | . . . . Garrison Access . | . . . . Terminal Hacks . | . . . . Fabricator Hacks . | . . . . Repair Station Hacks . | . . . . Recycling Unit Hacks . | . . . . Scanalyzer . | . . . . Garrison Access Hacks . | . . . . Unauthorized Hacks . | . . . . Terminals . | . . . . Fabricators . | . . . . Repair Stations . | . . . . Recycling Units . | . . . . Scanalyzers . | . . . . Garrison Access . | . . . . Data Cores Recovered . | . . . . Used . | . . . . Hacking Detections . | . . . . Full Trace Events . | . . . . Feedback Events . | . . . . Feedback Blocked . | . . . . Robot Schematics Acquired . | . . . . Robots Built . | . . . . Authchips . | . . . . Time . | . . . . Total Robot Build Rating . | . . . . Part Schematics Acquired . | . . . . Parts Built . | . . . . Authchips . | . . . . Time . | . . . . Total Part Build Rating . | . . . . Parts Repaired . | . . . . Time . | . . . . Parts Recycled . | . . . . Recycled Matter . | . . . . Retrieved Matter . | . . . . Retrieved Components . | . . . . Parts Scanalyzed . | . . . . Part Schematics Acquired . | . . . . Parts Damaged . | . . . . Bothacking | -11 -10 -10 -10 ------------ Run | Yrd Mat Min Sub Used RIF Installer . | . . . . Robots Hacked . | . . . . Non-combat . | . . . . Combat . | . . . . Robot Hacks Applied . | . . . . Relay Couplers Released . | . . . . Fabnet Peak Effective % . | . . . . Robots Rewired . | . . . . Allies Hacked . | . . . . Hacks Repelled . | . . . . Allies | -11 -10 -10 -10 -------- Run | Yrd Mat Min Sub Total Allies . | . . . . Largest Group . | . . . . Highest-Rated Group . | . . . . Highest-Rated Ally . | . . . . Total Orders . | . . . . Ally Attacks . | . . . . Total Damage . | . . . . Kills . | . . . . Allies Corrupted . | . . . . Allies Melted . | . . . . Intel | -11 -10 -10 -10 ------- Run | Yrd Mat Min Sub Active Infowar (turns) 563 | . . 59 504 Optics 391 | . . . 391 Terrain 172 | . . 59 113 Seismic 71 | . . 59 12 Robot Analysis Total 3 | 1 . 1 1 Derelict Logs Recovered 2 | . . . 2 Drone Launches . | . . . . Drone Recoveries . | . . . . Exploration | -11 -10 -10 -10 ------------- Run | Yrd Mat Min Sub Turns Passed 743 | 40 85 72 546 Spaces Moved 637 | 41 46 59 491 Core 94 | 12 . 23 59 Treads . | . . . . Legs . | . . . . Wheels 543 | 29 46 36 432 Hover . | . . . . Flight . | . . . . Fastest Speed 50 | 50 100 50 50 Average Speed 97 | 85 100 68 101 Slowest Speed 120 | 100 100 100 120 Overloaded Moves . | . . . . Propulsion Burnouts . | . . . . Robots Hopped . | . . . . Potential Cave-ins . | . . . . Cave-ins Triggered . | . . . . Exploration Rate (%) 14 | 3 9 23 23 Regions Visited 3 Branch Regions 2 Pre-discovered Areas 1 | . . 1 . Known Exits Taken . | . . . . Unknown Exits Taken 3 | 1 1 1 . Scrap Searched . | . . . . Spaces Dug 1 | . . 1 . Terrain Destroyed 3 | . . 3 . Melee . | . . . . Projectile 3 | . . 3 . AOE . | . . . . Terrain Rammed . | . . . . Walls Destroyed . | . . . . Machines Disabled . | . . . . Actions | -11 -10 -10 -10 --------- Run | Yrd Mat Min Sub Total 734 | 48 85 81 520 Wait 60 | . 38 12 10 Move 634 | 40 45 58 491 Hop . | . . . . Pick Up 7 | 4 1 . 2 Fast Attach . | . . . . Attach . | . . . . Detach . | . . . . Swap . | . . . . Drop 6 | 4 1 . 1 Fire 15 | . . 3 12 Melee . | . . . . Ram 3 | . . . 3 Kick . | . . . . Crush . | . . . . Escape Stasis . | . . . . Rewire . | . . . . Trap . | . . . . Miscellaneous 9 | . . 8 1 Route ------- -11/Scrapyard -10/Materials -10/Mines (discovered 2 exits: [*Mat] / [*Sub]) -10/Subcaves History --------- Turn | Location | Event 3 | -11/Scrapyard | Discovered new exit (range 15) 41 | -11/Scrapyard | Entered Materials 56 | -10/Materials | Discovered new exit (range 13) 126 | -10/Materials | Entered Mines 127 | -10/Mines | Learned location of Storage (-9) 134 | -10/Mines | Discovered new exit (range 12) 183 | -10/Mines | Discovered new exit (range 5) 198 | -10/Mines | Entered Subcaves 199 | -10/Subcaves | Approached by a straggling Scientist 210 | -10/Subcaves | Ambushed by Subdweller buried in earth 243 | -10/Subcaves | Learned Materials non-interactive machine intel 370 | -10/Subcaves | Shifting Twisted Machinery released Sub. Monowheel 370 | -10/Subcaves | Shifting Twisted Machinery released Enh. Flamer 390 | -10/Subcaves | Shifting Twisted Machinery released Scrap Shield 652 | -10/Subcaves | Learned Materials stockpile data 735 | -10/Subcaves | Core integrity fell below 50% 741 | -10/Subcaves | Core integrity fell below 20% 744 | -10/Subcaves | Destroyed by FU-T0P(R) with Subdweller Beam Cannon Last Messages --------------- Enh. Flamer falls loose from the Twisted Machinery. 00387_ Acquired Enh. Flamer. Scrap Shield falls loose from the Twisted Machinery. M9-3TB(c): "I think it's somewhere southeast of here" M9-3TB(c): "I think it's somewhere south of here" 00581_ 0S-D4P(u) tweaks Twisted Machinery. 00603_ Released control of IY-R0N(R). 00605_ IY-R0N(R) reactivates. M9-3TB(c): "I think it's somewhere south of here" 00606_ Took control of T-07 Excavator. 00607_ Subatomizers dissect the Sub. Power Source. 00640_ 0S-D4P(u) tweaks Twisted Machinery. 00652_ Acquired derelict log, extracted data. Data stored: Materials stockpile data. 00705_ Released control of T-07 Excavator. 00707_ T-07 Excavator destroyed. 00708_ Slammed into EE-BTW(R). 00709_ EE-BTW(R) knocked back. 00743_ Slammed into D6-D01(R). Map ----- +----------------------------------------------------+ | ??????????????????????????# ## "" #### | | ??????????????????????????# #?##"""" "" ### | | ??????????????????????????####???###"" "" ## | | ???????????????????????????????????#""" "" # | | ??????????????????????????????#????#####"" ## | | ???????????????????????????????????????## #? | | ??????????????????????????????????????###" #? | | ??????????????????????????????????#??##""" """ ##? | | ???????????????????????????????????#?#"" "####?? | | ?????????????????????????????????????#" ##????? | | ?????????????????????????????????????# ##?????? | | ????????????????????????????????##???## #?????? | | ?????????????????????????????????#???## #?????? | | ??????????????????????????????????????## #?????? | | ???????????????????????????????????????## ##????? | | ?????????????????????????#?????????????# #????? | | ?????????????????????????????????#?????# ####### | | ???????????????????????????????????????## # # | | ???????????????????#???############????# | | ??????????????????????##<<<< ?????## # ## | | ?????????????????????##< < < ???????######### | | ??????????????????????#<<<<<<& ?????????????### | | ??????????????????????#<<< < ??????????????### # | | ??????????????????????# < < ??????? ???????# | | ??????????????????????# < <#????? ?????#???### # # | | ??????????????????????#<<@R##??????#????????# ### | | ??????????????????????#< <######??????????# #?? | | ??????????????????????## % # #??????????## ### | | ?????????????????####??#< RR ##??????????# # " | | ????????????????## ##?## ## #??????????# | | ???????????????## ########" ###????##??## | | ??????????????## ## ### ###??????## ## | | ?????????????## # ##????## ##?# | | ?????????????# ## ### #???## ##??? | | ?????????????## #####" #???# ##???# | | ??????????????##????## ##??## #???? | | ?????????????????????# ##### #???? | | ????????????????????# ## ## ##???? | | ????????????????????# ### #????? | | ????????????????????# #######?# #????? | | ????????????????????## #???????# # #???? | | ?????????????????????# #??????# ### #???? | | ?????????????????????# ??????# ##?## #??? | | ?????????????????????# ??????# ##???? #?? | | ?????????????????????## ??????## #???#? ##?? | | ??????????????????????# ???????### #????? ??? | | ?????????????????????? ?????????## #????? ?? | | ?????????????????????? ??????????# ?????? ## ? | | ?????????????????????? #?????????? ???????#?# | | ?????????????????????? #??????????? ??????????#? | +----------------------------------------------------+ Best States ------------- Heat Dissipation 25 Coolant Potential 50 Energy Generation 20 Energy Capacity 150 Matter Stores 100 Matter Capacity 100 Sight Range 19 Terrain Scan Range 16 Terrain Scan Density 10 Armor Coverage 800 Evasion (%) 50 Item Schematics ----------------- None Robot Schematics ------------------ None Fabricated ------------ Nothing Repaired ---------- Nothing Alien Tech Used ----------------- None Achievements -------------- None Challenges ------------ None Polymind | -11 -10 -10 -10 ---------- Run | Yrd Mat Min Sub Hosts 4 | 1 . 1 2 Combat Hostiles 1 | . . . 1 Allies . | . . . . Unique Host Classes 3 | 1 . 1 1 Average Host Suspicion 37 | 5 33 44 38 Unsuspicious Activity 142 | 2 . 42 98 Returns to Shadow . | . . . . Fuzzy Dispatches . | . . . . Protomatter Created 25 | . . . 25 Used 48 | 5 . 5 38 Decayed 25 | . . . 25 Highest Spend 33 | 5 . 5 33 Top 5 Hosts by Kills: IY-R0N(R) (-10/Subcaves: 1) Game ------ Seed AntigravStealthReconstructor Manual? 0 Play Time 00:07:06 Cumulative 36.7 hours Start 2025.10.21 @ 05:04:43 End 2025.10.21 @ 05:09:19 Sessions 1 Manual Loads 0 Difficulty Rogue Special Mode Winter2022/Polymind Game No. 144 Rogue 144 Adventurer 0 Explorer 0 Win Type - Total 0 Types 0/0/0/0/0/0/0/0/0/0 Lore% 12 Gallery% 32 Achievement% 31 Wizard Run 0 Options --------- Layout 1 ASCII 0 Keyboard 1 Movement Vi Keybinds 0 Fullscreen 1 Font 16/SmallcapsGlow Map View 55x38 Zoom Use 0% Tactical HUD 1 Map Filters NONE Filters NONE Steam 1 RUN: a4c851a6-807b-425c-a844-bd30179edb03